bitfinex-derivatives/quotes_SOLF0:USTF0_20260203
["timestamp","ask_amount","ask_price","bid_price","bid_amount"]
[1770141717103,401.96,99.299,99.23,47.96661141]
[1770141717397,37.35455794,99.305,99.23,38.88641141]
[1770141717997,37.35455794,99.305,99.187,141.3085]
[1770141718198,37.35455794,99.238,99.15,38.88641141]
[1770141718696,402.0,99.248,99.159,38.88641141]
[1770141719202,402.0,99.248,99.165,9.0862]
[1770141719397,402.0,99.248,99.166,38.88641141]
[1770141719594,37.35455794,99.261,99.166,38.88641141]
[1770141719797,9.0787,99.247,99.168,38.88641141]
[1770141720602,37.35455794,99.231,99.135,38.88641141]
[1770141720899,141.2687,99.216,99.135,38.88641141]
[1770141721101,37.35455794,99.203,99.135,38.88641141]
[1770141721297,141.2901,99.201,99.135,38.88641141]
[1770141721606,402.04,99.208,99.135,38.88641141]
[1770141722204,9.0808,99.214,99.135,38.88641141]
[1770141722401,402.04,99.217,99.135,38.88641141]
[1770141722603,402.04,99.217,99.143,38.88641141]
[1770141723302,9.0801,99.221,99.147,38.88641141]
[1770141724104,37.35455794,99.224,99.149,38.88641141]
[1770141724415,402.12,99.233,99.152,38.88641141]
[1770141724704,37.35455794,99.232,99.152,38.88641141]
[1770141724902,37.35455794,99.232,99.168,9.0849]
[1770141725208,37.35455794,99.26,99.173,38.88641141]
[1770141726004,37.35455794,99.26,99.182,9.0837]
[1770141726005,9.0772,99.254,99.182,9.0837]
[1770141726206,37.35455794,99.25,99.154,38.88641141]
[1770141726403,37.35455794,99.248,99.157,38.88641141]
[1770141726700,9.0787,99.237,99.169,9.0849]
[1770141726908,37.35455794,99.248,99.17,38.88641141]
[1770141728604,37.35455794,99.248,99.171,38.88641141]
[1770141728905,402.18,99.249,99.174,38.88641141]
[1770141729306,37.35455794,99.247,99.178,9.084]
[1770141729505,6.19761114,99.24,99.152,334.58641141]
[1770141729706,37.35455794,99.239,99.153,38.88641141]
[1770141730107,37.35455794,99.239,99.156,38.88641141]
[1770141730705,37.35455794,99.239,99.084,24.29218714]
[1770141730706,37.35455794,99.228,99.136,38.88641141]
[1770141730911,37.35455794,99.219,99.136,38.88641141]
[1770141731509,9.0814,99.208,99.139,9.0876]
[1770141731711,141.2706,99.205,99.115,38.88641141]
[1770141731908,37.35455794,99.191,99.081,141.4461]
[1770141732108,37.35455794,99.179,99.082,38.88641141]
[1770141732717,9.0856,99.162,99.097,9.0915]
[1770141733719,402.28,99.165,99.106,38.88641141]
[1770141733913,37.35455794,99.179,99.106,38.88641141]
[1770141735821,9.0841,99.178,99.108,38.88641141]
[1770141736422,9.0832,99.188,99.118,47.97591141]
[1770141737518,9.0832,99.188,99.126,9.0887]
[1770141738114,402.34,99.197,99.135,9.0879]
[1770141738520,402.34,99.197,99.125,38.88641141]
[1770141738721,9.0811,99.211,99.144,9.0872]
[1770141738918,37.35455794,99.211,99.125,38.88641141]
[1770141739224,37.35455794,99.209,99.128,38.88641141]
[1770141739718,9.0827,99.194,99.128,38.88641141]
[1770141741926,9.0827,99.194,99.128,47.97501141]
[1770141742118,49.23720872,99.203,99.128,38.88641141]
[1770141742421,442.57540872,99.223,99.141,37.17238444]
[1770141742628,40.15540872,99.223,99.143,37.17238444]
[1770141742920,40.15540872,99.223,99.152,37.17238444]
[1770141743127,40.15540872,99.223,99.161,37.17238444]
[1770141743827,9.0778,99.247,99.166,37.17238444]
[1770141744017,40.15540872,99.28,99.205,141.2695]
[1770141744221,40.15540872,99.28,99.206,37.17238444]
[1770141744421,40.15540872,99.28,99.216,9.0805]
[1770141745118,40.15540872,99.302,99.224,37.17238444]
[1770141745318,40.15540872,99.298,99.202,37.17238444]
[1770141745517,9.075,99.277,99.202,37.17238444]
[1770141745720,40.15540872,99.261,99.18,37.17238444]
[1770141746432,9.0779,99.246,99.181,9.0838]
[1770141746733,40.15540872,99.244,99.155,37.17238444]
[1770141746927,40.15540872,99.24,99.169,9.0848]
[1770141747523,9.0792,99.232,99.159,46.25808444]
[1770141747830,40.15540872,99.219,99.13,37.17238444]
[1770141748529,9.0822,99.198,99.13,37.17238444]
[1770141748923,9.0822,99.198,99.098,141.422]
[1770141748924,40.15540872,99.206,99.099,37.17238444]
[1770141749230,9.0832,99.188,99.111,37.17238444]
[1770141749432,40.15540872,99.187,99.111,37.17238444]
[1770141749727,40.15540872,99.187,99.09,297.76]
[1770141749728,40.15540872,99.186,99.09,297.76]
[1770141749928,40.15540872,99.172,99.087,37.17238444]
[1770141750230,40.15540872,99.17,99.087,37.17238444]
[1770141750431,141.3156,99.173,99.065,37.17238444]
[1770141750432,46.35301986,99.16,99.065,37.17238444]
[1770141750932,40.15540872,99.149,99.065,37.17238444]
[1770141751127,40.15540872,99.141,99.065,37.17238444]
[1770141751333,141.4633,99.07,98.968,38.33152243]
[1770141751532,543.8443,99.069,98.968,38.33152243]
[1770141752037,141.4948,99.048,98.968,38.33152243]
[1770141752226,141.4687,99.066,98.968,38.33152243]
[1770141752428,402.42,99.08,98.98,42.82361103]
[1770141752724,141.4511,99.078,98.98,42.82361103]
[1770141752924,402.42,99.08,98.854,10.26218815]
[1770141752925,402.42,99.08,98.996,42.82361103]
[1770141753127,402.42,99.091,99.007,42.82361103]
[1770141753332,402.46,99.101,99.015,42.82361103]
[1770141753536,402.46,99.107,99.018,41.92418469]
[1770141753933,141.3355,99.16,99.04,41.92418469]
[1770141754123,402.46,99.134,99.04,41.92418469]
[1770141754324,141.3748,99.132,99.04,41.92418469]
[1770141754528,141.4039,99.112,99.04,41.92418469]
[1770141754735,141.391,99.121,99.04,41.92418469]
[1770141755127,141.3504,99.149,99.05,41.93396547]
[1770141755329,402.52,99.146,99.063,41.93396547]
[1770141755535,141.3189,99.171,99.074,43.69800678]
[1770141755730,402.56,99.17,99.08,185.14480678]
[1770141755930,147.48991114,99.19,99.073,141.4578]
[1770141755931,282.548,99.203,99.094,43.69800678]
[1770141756134,402.56,99.187,99.104,43.69800678]
[1770141756938,141.3869,99.123,98.986,141.582]
[1770141757134,141.4096,99.107,98.996,43.71204397]
[1770141757335,6.19761114,99.09,98.996,43.71204397]
[1770141757540,141.4377,99.088,98.996,43.71204397]
[1770141757839,150.36,99.106,98.996,43.71204397]
[1770141758038,150.36,99.106,98.988,141.5789]
[1770141758039,6.19761114,99.1,99.006,141.5526]
[1770141758346,147.61731114,99.1,99.004,42.88084928]
[1770141758532,141.4197,99.1,99.004,42.88084928]
[1770141758937,147.61731114,99.1,99.004,42.88084928]
[1770141759339,0.87684462,99.099,99.004,42.88084928]
[1770141759539,0.87684462,99.09,99.004,42.88084928]
[1770141759743,0.87684462,99.089,99.004,42.88084928]
[1770141759943,0.87684462,99.087,99.004,42.88084928]
[1770141760938,1.06292284,99.059,98.977,41.06973443]
[1770141761137,302.44,99.058,98.977,41.06973443]
[1770141762241,302.44,99.058,98.982,41.32072791]
[1770141762942,0.93930899,99.012,98.902,141.7016]
[1770141763141,9.0988,99.018,98.918,41.32811193]
[1770141763446,0.93930899,99.028,98.918,41.32811193]
[1770141763644,0.93930899,99.028,98.903,221.74]
[1770141763645,0.93930899,99.028,98.942,41.41007457]
[1770141764245,9.0965,99.042,98.942,41.41007457]
[1770141764448,9.0965,99.042,98.947,41.41746068]
[1770141764839,150.6075,99.037,98.949,41.41746068]
[1770141765146,403.9449333,99.036,98.949,41.41746068]
[1770141766340,1.1449333,99.036,98.949,41.41746068]
[1770141766745,1.1449333,99.036,98.956,42.78178868]
[1770141768447,402.9,99.045,98.964,42.81328688]
[1770141768952,9.0964,99.044,98.964,42.81328688]
[1770141769153,141.5113,99.036,98.94,49.01089802]
[1770141769453,0.09849817,99.022,98.94,42.81328688]
[1770141769846,0.09849817,99.022,98.942,42.40249304]
[1770141770046,0.09849817,99.022,98.904,141.6989]
[1770141770047,0.09849817,98.963,98.876,42.40249304]
[1770141770246,9.1047,98.954,98.876,42.40249304]
[1770141770450,0.09849817,98.956,98.876,42.40249304]
[1770141770648,0.09849817,98.956,98.877,304.5]
[1770141770859,9.1046,98.954,98.877,304.5]
[1770141771157,9.1046,98.954,98.852,141.7736]
[1770141771158,0.51498711,98.947,98.87,45.20504195]
[1770141771757,0.51498711,98.947,98.872,9.1121]
[1770141771946,141.5971,98.976,98.87,45.20504195]
[1770141771947,4.45846298,98.975,98.893,41.072597]
[1770141772654,4.62134159,98.959,98.875,304.9]
[1770141772954,4.62134159,98.959,98.879,141.7346]
[1770141773151,4.62134159,98.959,98.875,304.9]
[1770141774454,4.62134159,98.959,98.871,42.68067453]
[1770141774652,6.19761114,98.92,98.812,75.84075288]
[1770141774853,141.6245,98.957,98.834,141.799]
[1770141774854,6.19761114,98.93,98.834,141.799]
[1770141775053,324.96,98.935,98.837,141.7947]
[1770141775253,324.96,98.935,98.838,75.84075288]
[1770141775650,141.6132,98.965,98.853,75.5783864]
[1770141775859,9.105,98.95,98.853,75.5783864]
[1770141776151,141.6687,98.926,98.826,75.5783864]
[1770141776354,9.1077,98.922,98.826,75.5783864]
[1770141777657,9.1077,98.922,98.828,75.84075288]
[1770141777956,9.1077,98.922,98.836,75.84075288]
[1770141778151,9.1086,98.911,98.836,75.84075288]
[1770141779350,9.107,98.928,98.836,75.84075288]
[1770141779655,141.6844,98.915,98.809,75.84075288]
[1770141779849,6.19761114,98.92,98.828,75.84075288]
[1770141780048,403.32,98.922,98.828,75.84075288]
[1770141780265,9.1068,98.931,98.847,75.84075288]
[1770141780457,141.6363,98.949,98.85,75.84075288]
[1770141780854,9.1055,98.945,98.864,75.84075288]
[1770141781058,9.1055,98.945,98.853,141.7718]
[1770141781059,6.19761114,98.98,98.874,75.84075288]
[1770141781362,6.19761114,99.0,98.922,9.1076]
[1770141781553,141.5469,99.011,98.922,73.7600402]
[1770141781753,141.5527,99.007,98.922,73.7600402]
[1770141782052,9.1002,99.003,98.922,73.7600402]
[1770141782254,141.5497,99.009,98.922,73.7600402]
[1770141782457,6.19761114,99.01,98.922,73.7600402]
[1770141782660,9.1001,99.004,98.922,73.7600402]
[1770141783255,6.19761114,99.01,98.927,73.7601414]
[1770141784064,6.19761114,99.01,98.876,141.7395]
[1770141784065,141.6208,98.96,98.862,72.45559077]
[1770141784261,6.19761114,98.95,98.842,72.45559077]
[1770141784558,9.1015,98.989,98.882,72.45138071]
[1770141784760,403.4,98.993,98.897,72.45138071]
[1770141784958,403.4,98.993,98.904,72.45138071]
[1770141785160,403.4,98.993,98.901,141.7029]
[1770141785161,403.4,98.993,98.913,72.45138071]
[1770141785355,403.38,99.019,98.918,141.6785]
[1770141785561,403.38,99.019,98.921,72.28634281]
[1770141785760,141.5128,99.035,98.915,141.6836]
[1770141785761,141.5128,99.035,98.926,72.28634281]
[1770141786359,30.26,99.037,98.915,141.6836]
[1770141786360,283.0024,99.043,98.938,72.28634281]
[1770141787467,283.0024,99.043,98.947,75.84075288]
[1770141787468,9.0965,99.043,98.947,75.84075288]
[1770141787660,403.38,99.047,98.947,75.84075288]
[1770141787860,403.38,99.047,98.956,75.84075288]
[1770141788260,403.38,99.047,98.959,75.84075288]
[1770141788466,9.0951,99.058,98.959,75.84075288]
[1770141788467,412.4551,99.058,98.959,75.84075288]
[1770141788666,412.4551,99.058,98.966,75.84075288]
[1770141788863,403.36,99.058,98.973,75.84075288]
[1770141789268,141.4294,99.094,98.987,75.84075288]
[1770141789470,6.22018019,99.12,99.015,75.84075288]
[1770141789766,141.4211,99.099,99.017,75.84075288]
[1770141790275,9.0929,99.082,99.017,75.84075288]
[1770141790564,141.4274,99.095,99.017,75.84075288]
[1770141791067,141.4445,99.083,98.993,75.84075288]
[1770141791760,9.0941,99.069,98.993,75.84075288]
[1770141791967,403.28,99.09,98.993,75.84075288]
[1770141792269,141.4426,99.084,98.993,75.84075288]
[1770141792470,9.094,99.07,98.993,75.84075288]
[1770141792769,403.26,99.089,98.993,75.84075288]
[1770141792958,403.26,99.089,98.994,9.1009]
[1770141793262,403.26,99.089,98.976,141.5968]
[1770141793263,141.5203,99.03,98.921,141.675]
[1770141793466,141.5203,99.03,98.92,6.22018019]
[1770141793467,403.24,99.031,98.927,141.6669]
[1770141793666,141.4648,99.069,98.946,141.6388]
[1770141793667,403.24,99.054,98.946,141.6388]
[1770141793968,403.24,99.054,98.953,141.6296]
[1770141794166,403.24,99.054,98.967,141.6096]
[1770141794467,403.22,99.079,98.992,141.5729]
[1770141794668,141.4344,99.09,99.002,9.1002]
[1770141794965,141.4435,99.084,98.987,314.32]
[1770141795159,141.4435,99.084,98.988,75.84075288]
[1770141795365,9.0929,99.082,98.988,84.94215288]
[1770141795766,9.0929,99.082,98.988,226.52115288]
[1770141796062,9.0929,99.082,98.999,75.84075288]
[1770141797563,9.0939,99.071,99.001,75.84075288]
[1770141797769,141.4701,99.065,99.001,75.84075288]
[1770141797968,141.4563,99.075,99.001,75.84075288]
[1770141798468,141.4351,99.09,99.001,75.84075288]
[1770141798668,403.22,99.092,99.001,75.84075288]
[1770141798870,141.4314,99.092,99.001,75.84075288]
[1770141799067,403.14,99.091,99.001,75.84075288]
[1770141799365,409.34018019,99.09,99.001,75.84075288]
[1770141799566,403.12,99.09,99.001,75.84075288]
[1770141800069,403.12,99.09,99.003,75.84075288]
[1770141801566,403.12,99.09,99.015,75.76915648]
[1770141801768,403.12,99.09,99.023,75.76915648]
[1770141802265,9.091,99.103,99.026,75.76915648]
[1770141802467,403.08,99.097,99.026,75.76915648]
[1770141803062,9.0898,99.116,99.03,75.76915648]
[1770141803267,403.08,99.13,99.03,75.76915648]
[1770141803463,147.56888019,99.15,99.03,75.76915648]
[1770141803669,9.0887,99.128,99.038,75.76915648]
[1770141804370,9.0887,99.128,99.04,75.76915648]
[1770141804770,403.06,99.136,99.061,75.76915648]
[1770141805265,9.0892,99.123,99.05,9.0958]
[1770141805468,141.3936,99.119,99.04,75.76915648]
[1770141805672,141.3885,99.122,99.04,75.76915648]
[1770141805972,6.22018019,99.11,99.04,75.76915648]
[1770141806168,141.4006,99.114,99.04,75.76915648]
[1770141806375,9.0895,99.119,99.043,75.76915648]
[1770141807076,9.0895,99.119,99.045,75.76915648]
[1770141807971,9.0904,99.11,99.045,75.76915648]
[1770141809371,141.3326,99.162,99.057,75.76915648]
[1770141809571,141.3389,99.157,99.058,74.79371648]
[1770141809769,141.3414,99.155,99.058,74.79371648]
[1770141810769,9.0876,99.14,99.068,74.7963128]
[1770141811574,9.0867,99.15,99.07,74.7963128]
[1770141811778,402.96,99.161,99.075,74.68568437]
[1770141811967,402.96,99.161,99.095,74.68568437]
[1770141812169,9.0847,99.172,99.095,74.68568437]
[1770141812569,402.94,99.186,99.08,141.4475]
[1770141812570,9.0835,99.185,99.111,74.68799202]
[1770141812764,402.92,99.212,99.112,141.4025]
[1770141812969,141.2687,99.206,99.113,74.68799202]
[1770141813174,402.92,99.212,99.119,74.68799202]
[1770141813175,9.0833,99.187,99.119,74.68799202]
[1770141813370,141.2448,99.223,99.119,74.68799202]
[1770141813570,402.88,99.226,99.127,74.63052481]
[1770141813972,402.88,99.226,99.147,74.63052481]
[1770141813973,9.0805,99.218,99.147,74.63052481]
[1770141814369,141.243,99.224,99.147,74.63052481]
[1770141814674,141.2741,99.203,99.104,74.63265876]
[1770141815074,402.86,99.202,99.104,74.63265876]
[1770141815275,402.82,99.204,99.119,74.63265876]
[1770141815469,141.243,99.224,99.122,141.3876]
[1770141815668,9.0799,99.223,99.154,9.0862]
[1770141815868,141.2004,99.254,99.155,74.50773011]
[1770141816074,141.2032,99.252,99.155,74.50773011]
[1770141816273,141.2223,99.239,99.155,74.50773011]
[1770141816574,141.2223,99.239,99.128,320.58]
[1770141816575,141.2646,99.209,99.119,320.66]
[1770141816774,9.0823,99.198,99.125,74.5095735]
[1770141817379,9.0832,99.188,99.125,74.5095735]
[1770141817780,9.0831,99.189,99.125,74.5095735]
[1770141818280,141.2814,99.198,99.125,74.5095735]
[1770141818474,141.255,99.216,99.125,74.5095735]
[1770141818675,141.2555,99.216,99.129,74.80216133]
[1770141818876,141.2647,99.209,99.129,74.80216133]
[1770141819277,141.2502,99.219,99.129,74.80216133]
[1770141819474,141.2309,99.233,99.131,74.42549553]
[1770141819673,402.7,99.231,99.131,74.42549553]
[1770141819873,402.7,99.231,99.15,74.42549553]
[1770141820074,9.0795,99.228,99.15,74.42549553]
[1770141820780,9.0795,99.228,99.165,74.42709509]
[1770141821080,9.0804,99.218,99.165,74.42709509]
[1770141821276,141.2405,99.226,99.165,74.42709509]
[1770141821480,9.081,99.212,99.165,74.42709509]
[1770141823381,9.081,99.212,99.132,74.66617312]
[1770141824678,6.22018019,99.26,99.149,74.65557985]
[1770141824882,141.1853,99.265,99.16,74.65557985]
[1770141825080,9.0769,99.257,99.179,74.65557985]
[1770141825783,9.0769,99.257,99.182,74.66452357]
[1770141826185,9.0777,99.248,99.182,74.66452357]
[1770141826485,141.1697,99.276,99.184,74.66639217]
[1770141826486,402.54,99.266,99.184,74.66639217]
[1770141826677,9.0775,99.25,99.184,74.66639217]
[1770141827077,402.54,99.266,99.184,74.66639217]
[1770141827386,9.0766,99.26,99.184,74.66639217]
[1770141827787,9.0757,99.27,99.188,75.456142]
[1770141828389,402.5,99.291,99.199,75.456142]
[1770141828582,141.1663,99.278,99.199,75.456142]
[1770141828783,6.22018019,99.26,99.177,75.45924872]
[1770141829281,141.2045,99.251,99.177,75.45924872]
[1770141829481,402.46,99.259,99.177,75.45924872]
[1770141829888,402.46,99.259,99.19,75.55534547]
[1770141831293,402.46,99.259,99.2,9.082]
[1770141831492,402.46,99.259,99.2,75.56044678]
[1770141832486,6.22018019,99.3,99.202,75.66542919]
[1770141832689,141.1536,99.287,99.202,75.66542919]
[1770141833085,30.26,99.296,99.205,75.66542919]
[1770141833287,402.42,99.297,99.205,75.66542919]
[1770141833691,9.0743,99.286,99.223,9.0799]
[1770141833989,141.1142,99.315,99.215,75.69038389]
[1770141834190,402.4,99.312,99.215,75.69038389]
[1770141834384,6.22018019,99.33,99.24,84.76868389]
[1770141834590,432.64,99.325,99.24,84.76868389]
[1770141835088,141.1188,99.312,99.24,75.69038389]
[1770141835293,141.1207,99.31,99.24,75.69038389]
[1770141835484,9.0735,99.294,99.24,75.69038389]
[1770141835681,141.1152,99.314,99.24,75.69038389]
[1770141836089,9.0718,99.312,99.242,75.76149562]
[1770141836285,6.22018019,99.33,99.242,75.76149562]
[1770141836488,402.32,99.332,99.242,75.76149562]
[1770141836687,6.22018019,99.36,99.252,75.76149562]
[1770141836887,141.0646,99.35,99.252,75.76149562]
[1770141837192,141.0851,99.335,99.252,75.76149562]
[1770141837792,30.26,99.354,99.255,75.76149562]
[1770141837989,141.0578,99.355,99.255,75.76149562]
[1770141838194,402.32,99.359,99.262,75.76149562]
[1770141838383,141.0561,99.356,99.273,75.76149562]
[1770141839295,9.0688,99.345,99.273,75.76149562]
[1770141839497,402.32,99.359,99.276,75.76149562]
[1770141839898,9.0686,99.347,99.276,75.76149562]
[1770141840089,30.26,99.384,99.278,75.76149562]
[1770141840298,30.26,99.384,99.268,141.18]
[1770141840299,30.26,99.384,99.286,75.76149562]
[1770141840599,141.0273,99.376,99.286,75.76149562]
[1770141840796,141.0434,99.365,99.286,75.76149562]
[1770141841105,141.1796,99.269,99.164,75.76149562]
[1770141841395,141.1863,99.264,99.164,75.76149562]
[1770141841590,402.18,99.268,99.172,75.76149562]
[1770141841893,402.18,99.268,99.174,75.76149562]
[1770141842298,150.261,99.265,99.174,75.76149562]
[1770141842494,141.2009,99.254,99.174,75.76149562]
[1770141842797,141.1867,99.264,99.174,75.76149562]
[1770141843092,141.1892,99.262,99.174,75.76149562]
[1770141843289,141.195,99.258,99.174,75.76149562]
[1770141843487,150.2718,99.258,99.174,75.76149562]
[1770141843892,141.213,99.246,99.174,75.76149562]
[1770141844292,141.2656,99.209,99.148,75.0615223]
[1770141844498,141.2833,99.196,99.109,75.06349434]
[1770141845198,9.0825,99.196,99.111,75.06349434]
[1770141845497,141.2682,99.207,99.115,75.76149562]
[1770141846291,9.0816,99.205,99.118,75.76149562]
[1770141846894,9.0816,99.205,99.122,75.76149562]
[1770141847094,9.0816,99.205,99.11,6.22018019]
[1770141847095,141.3349,99.16,99.055,75.76149562]
[1770141847290,141.3466,99.152,99.055,75.76149562]
[1770141847496,402.22,99.159,99.062,75.76149562]
[1770141847800,402.22,99.175,99.081,75.76149562]
[1770141847998,402.22,99.175,99.096,75.76149562]
[1770141848991,141.3269,99.166,99.096,75.76149562]
[1770141849400,141.3111,99.177,99.096,75.76149562]
[1770141849401,402.28,99.167,99.096,75.76149562]
[1770141849994,141.3375,99.158,99.096,75.76149562]
[1770141850198,402.28,99.157,99.096,75.76149562]
[1770141851794,141.4023,99.113,98.987,75.76149562]
[1770141851999,141.4023,99.113,98.986,141.5813]
[1770141852000,141.4038,99.112,98.999,75.76149562]
[1770141852196,141.3872,99.123,99.014,141.5413]
[1770141852392,344.7,99.111,99.015,75.76149562]
[1770141852600,344.7,99.111,99.027,75.76149562]
[1770141852799,141.4144,99.104,99.027,75.76149562]
[1770141852997,141.3976,99.116,99.027,75.76149562]
[1770141853193,141.4115,99.106,99.027,75.76149562]
[1770141853397,150.4948,99.111,99.027,75.76149562]
[1770141853597,6.20844103,99.12,99.027,75.76149562]
[1770141855199,9.0914,99.098,98.987,75.76149562]
[1770141855394,9.0914,99.098,98.816,30.75093736]
[1770141855395,141.3911,99.121,99.017,75.76149562]
[1770141855603,402.46,99.105,99.03,75.76149562]
[1770141856102,402.46,99.105,99.032,75.76149562]
[1770141857095,402.52,99.126,99.05,141.4905]
[1770141857300,402.54,99.13,99.051,75.76149562]
[1770141858103,141.3909,99.121,99.051,75.76149562]
[1770141858302,402.54,99.129,99.051,75.76149562]
[1770141858901,9.0887,99.128,99.051,75.76149562]
[1770141859203,402.54,99.129,99.051,75.76149562]
[1770141859604,402.54,99.129,99.051,84.85719562]
[1770141860305,402.62,99.134,99.051,84.85719562]
[1770141860503,9.0882,99.133,99.051,84.85719562]
[1770141861900,9.0882,99.133,99.051,9.0957]
[1770141862103,141.4793,99.059,98.95,75.81880669]
[1770141862300,141.4916,99.05,98.95,75.81880669]
[1770141862610,6.20844103,99.04,98.95,75.81880669]
[1770141863107,9.0969,99.039,98.95,75.81880669]
[1770141863811,9.098,99.026,98.95,75.81880669]
[1770141864606,402.7,99.025,98.95,75.81880669]
[1770141865808,402.7,99.025,98.91,6.20844103]
[1770141865809,141.4486,99.08,98.992,75.26958015]
[1770141866004,6.20844103,99.07,98.992,75.26958015]
[1770141866201,141.439,99.087,98.992,75.26958015]
[1770141866498,141.439,99.087,98.956,141.6252]
[1770141866499,6.20844103,99.12,99.014,75.27012798]
[1770141866702,402.78,99.119,99.014,75.27012798]
[1770141866911,6.20844103,99.12,99.014,75.27012798]
[1770141867110,282.801,99.114,99.014,75.27012798]
[1770141867310,141.373,99.133,99.014,75.27012798]
[1770141867311,6.20844103,99.1,99.014,75.27012798]
[1770141867513,141.5173,99.032,98.934,75.81880669]
[1770141867710,141.5086,99.038,98.942,75.81880669]
[1770141868011,9.0981,99.025,98.935,75.81880669]
[1770141868207,6.20844103,99.01,98.935,75.81880669]
[1770141868406,6.20844103,99.01,98.905,75.81880669]
[1770141868603,141.5564,99.005,98.905,75.81880669]
[1770141868808,6.20844103,99.01,98.905,75.81880669]
[1770141868809,9.1006,98.998,98.905,75.81880669]
[1770141869111,377.98,98.997,98.912,75.81880669]
[1770141869307,377.98,98.997,98.92,9.1077]
[1770141869509,377.98,98.997,98.921,75.81880669]
[1770141869711,377.98,98.997,98.923,217.49120669]
[1770141869902,377.98,98.997,98.928,9.1069]
[1770141870506,377.98,98.997,98.924,75.81880669]
[1770141871108,377.98,98.997,98.925,9.1073]
[1770141871511,9.0983,99.024,98.929,141.6636]
[1770141871715,6.20844103,99.03,98.935,9.1064]
[1770141871716,402.94,99.023,98.935,9.1064]
[1770141871917,402.94,99.023,98.938,75.14391567]
[1770141872118,402.94,99.029,98.94,75.14391567]
[1770141872315,402.94,99.029,98.94,84.24981567]
[1770141872916,141.5292,99.024,98.94,75.14391567]
[1770141873214,141.5231,99.028,98.94,75.14391567]
[1770141873414,403.0,99.023,98.94,75.14391567]
[1770141873616,9.0992,99.014,98.94,75.14391567]
[1770141874312,9.0992,99.014,98.942,9.1057]
[1770141875713,403.0,99.023,98.952,9.1047]
[1770141876115,6.20844103,99.05,98.955,74.72730139]
[1770141876312,403.06,99.052,98.955,74.72730139]
[1770141876715,141.5822,98.987,98.884,74.72758546]
[1770141876910,403.06,98.988,98.886,74.72758546]
[1770141877109,403.06,98.988,98.9,74.72758546]
[1770141877315,150.6587,99.003,98.9,74.72758546]
[1770141877513,9.1002,99.003,98.9,74.72758546]
[1770141877711,403.08,99.005,98.921,75.73048033]
[1770141878014,403.08,99.005,98.924,75.73048033]
[1770141878216,150.6573,99.004,98.924,75.73048033]
[1770141878615,141.5445,99.013,98.924,75.73048033]
[1770141879017,150.6437,99.013,98.924,75.73048033]
[1770141879215,141.5557,99.005,98.924,75.73048033]
[1770141879408,141.5654,98.999,98.924,75.73048033]
[1770141880215,6.20844103,99.01,98.924,75.73048033]
[1770141880611,9.0999,99.006,98.924,84.83788033]
[1770141880817,403.1,99.019,98.925,75.81880669]
[1770141881818,6.20844103,99.01,98.925,75.81880669]
[1770141882116,403.1,99.019,98.925,75.81880669]
[1770141882117,141.5439,99.014,98.925,75.81880669]
[1770141882320,9.1011,98.993,98.905,75.81880669]
[1770141883116,9.1014,98.99,98.905,75.81880669]
[1770141883823,403.18,98.989,98.905,75.81880669]
[1770141884016,141.6222,98.959,98.8,75.81880669]
[1770141884218,141.6883,98.913,98.823,75.81880669]
[1770141884420,181.36,98.921,98.823,75.81880669]
[1770141884924,9.1082,98.916,98.823,75.81880669]
[1770141885230,141.6439,98.944,98.831,141.8042]
[1770141885520,9.1055,98.945,98.84,75.81880669]
[1770141885719,9.1055,98.945,98.85,75.81880669]
[1770141886221,9.1071,98.928,98.85,75.81880669]
[1770141886420,403.24,98.955,98.85,75.81880669]
[1770141886617,141.6328,98.951,98.85,75.81880669]
[1770141886816,141.6304,98.953,98.861,75.81880669]
[1770141887122,141.6147,98.964,98.861,75.81880669]
[1770141887123,403.24,98.958,98.861,75.81880669]
[1770141887318,141.6241,98.957,98.861,75.81880669]
[1770141887518,9.1049,98.952,98.864,75.81880669]
[1770141887919,6.20844103,98.98,98.851,141.7746]
[1770141887920,141.5685,98.996,98.868,75.81880669]
[1770141888121,141.5685,98.996,98.867,141.7528]
[1770141888122,141.5685,98.996,98.888,75.81880669]